[Event "CZE-ch Amateurs 2022"]
[Site "Luhacovice"]
[Date "2022.03.15"]
[Round "5.15"]
[White "Dudek Vojtech"]
[Black "Zaza, Martin"]
[Result "0-1"]
[ECO "D02"]
[WhiteElo "2045"]
[BlackElo "1822"]
[Annotator "ChessBase"]
[PlyCount "100"]
[EventDate "2022.03.12"]
[EventType "swiss"]
[EventCountry "CZE"]
[SourceTitle "playchess.com"]
[Source "ChessBase"]
[SourceQuality "1"]
[TimeControl "5400+30"]

1. Nf3 {[%emt 0:00:05]} Nf6 {[%emt 0:00:06]} 2. d4 {[%emt 0:00:16]} d5 {[%emt 0:00:15]} 3. Bf4 {[%emt 0:00:13]} c5 {[%emt 0:00:08]} 4. e3 {[%emt 0:00:07]} Nc6 {[%emt 0:00:08]} 5. c3 {[%emt 0:00:28]} Qb6 {[%emt 0:00:08]} 6. Qb3 {[%emt 0:00:12]} c4 {[%emt 0:00:04]} 7. Qc2 {[%emt 0:00:06]} Bf5 {[%emt 0:00:06]} 8. Qc1 {[%emt 0:00:10]} e6 {[%emt 0:00:32]} 9. Be2 {[%emt 0:00:27]} Be7 {[%emt 0:04:26]} 10. Nbd2 {[%emt 0:00:28]} h6 {[%emt 0:03:13]} 11. O-O {[%emt 0:06:07]} O-O {[%emt 0:08:10]} 12. b3 {[%emt 0:05:10]} cxb3 {[%emt 0:01:03]} 13. axb3 {[%emt 0:00:11]} Ne4 {[%emt 0:01:51]} 14. Nxe4 {[%emt 0:06:21]} Bxe4 {[%emt 0:00:10]} 15. Nd2 {[%emt 0:00:13]} Bg6 {[%emt 0:00:24]} 16. b4 {[%emt 0:05:07]} Rfc8 {[%emt 0:01:21]} 17. Qb2 {[%emt 0:01:49]} Nxb4 {[%emt 0:09:37]} 18. e4 {[%emt 0:17:00]} Nc6 {[%emt 0:01:09]} 19. Qa2 {[%emt 0:19:47]} dxe4 {[%emt 0:04:58]} 20. Rfb1 {[%emt 0:00:27]} Qd8 {[%emt 0:00:05]} 21. Rxb7 {[%emt 0:00:29]} Bd6 {[%emt 0:00:17]} 22. Be3 {[%emt 0:00:43]} Rcb8 {[%emt 0:05:12]} 23. Ba6 {[%emt 0:01:36]} Bxh2+ {[%emt 0:05:15]} 24. Kxh2 {[%emt 0:14:27]} Rxb7 {[%emt 0:00:08]} 25. Bxb7 {[%emt 0:00:05]} Qc7+ {[%emt 0:00:07]} 26. Bf4 {[%emt 0:03:49]} Qxb7 {[%emt 0:01:40]} 27. Nc4 {[%emt 0:02:14]} Ne7 {[%emt 0:04:39]} 28. Na5 {[%emt 0:03:20]} Qb6 {[%emt 0:03:45]} 29. Qa3 {[%emt 0:03:46]} Nd5 {[%emt 0:02:24]} 30. Bg3 {[%emt 0:02:02]} Nf6 {[%emt 0:00:26]} 31. Nc4 {[%emt 0:01:09]} Qb5 {[%emt 0:00:46]} 32. Ne5 {[%emt 0:00:25]} Qe2 {[%emt 0:02:09]} 33. c4 {[%emt 0:02:10]} Bf5 {[%emt 0:02:09]} 34. Qe3 {[%emt 0:04:04]} Qb2 {[%emt 0:01:24]} 35. Ra3 {[%emt 0:00:24]} a5 {[%emt 0:00:21]} 36. Rb3 {[%emt 0:00:24]} Qa1 {[%emt 0:00:52]} 37. Bh4 {[%emt 0:01:35]} a4 {[%emt 0:01:19]} 38. Bxf6 {[%emt 0:01:03]} axb3 {[%emt 0:00:38]} 39. Qg3 {[%emt 0:00:15]} Bg6 {[%emt 0:00:24]} 40. Nxg6 {[%emt 0:00:22]} fxg6 {[%emt 0:00:14]} 41. Qxg6 {[%emt 0:00:06]} Qa7 {[%emt 0:00:30]} 42. Be5 {[%emt 0:00:39]} b2 {[%emt 0:01:21]} 43. Qxe6+ {[%emt 0:00:14]} Qf7 {[%emt 0:00:53]} 44. Qb6 {[%emt 0:00:41]} Qh5+ {[%emt 0:00:04]} 45. Kg3 {[%emt 0:00:12]} Qg5+ {[%emt 0:02:09]} 46. Kh3 {[%emt 0:00:30]} Ra3+ {[%emt 0:00:23]} 47. g3 {[%emt 0:00:13]} Qh5+ {[%emt 0:00:08]} 48. Kg2 {[%emt 0:00:02]} Qf3+ {[%emt 0:00:28]} 49. Kh3 {[%emt 0:00:02]} Ra1 {[%emt 0:00:17]} 50. Qe6+ {[%emt 0:01:42]} Kh7 {[%emt 0:00:22]} 0-1

[Event "CZE-ch Amateurs 2022"]
[Site "Luhacovice"]
[Date "2022.03.15"]
[Round "5.16"]
[White "Bakalar, Jan"]
[Black "Svobodova, Michaela"]
[Result "1/2-1/2"]
[ECO "B41"]
[WhiteElo "1820"]
[BlackElo "2054"]
[Annotator "ChessBase"]
[PlyCount "100"]
[EventDate "2022.03.12"]
[EventType "swiss"]
[EventCountry "CZE"]
[SourceTitle "playchess.com"]
[Source "ChessBase"]
[SourceQuality "1"]
[TimeControl "5400+30"]

1. e4 {[%emt 0:00:11]} c5 {[%emt 0:00:12]} 2. Nf3 {[%emt 0:00:41]} e6 {[%emt 0:00:20]} 3. d4 {[%emt 0:01:22]} cxd4 {[%emt 0:00:10]} 4. Nxd4 {[%emt 0:00:03]} a6 {[%emt 0:00:12]} 5. c4 {[%emt 0:03:10]} Nf6 {[%emt 0:03:48]} 6. Nc3 {[%emt 0:00:22]} Qc7 {[%emt 0:01:31]} 7. Be2 {[%emt 0:08:37]} Be7 {[%emt 0:02:10]} 8. O-O {[%emt 0:01:37]} b6 {[%emt 0:02:25]} 9. Qd3 {[%emt 0:07:39]} Bb7 {[%emt 0:02:52]} 10. Nc2 {[%emt 0:07:10]} d6 {[%emt 0:04:36]} 11. b3 {[%emt 0:13:14]} Nbd7 {[%emt 0:01:28]} 12. f3 {[%emt 0:01:19]} Rc8 {[%emt 0:05:21]} 13. Bb2 {[%emt 0:01:09]} O-O {[%emt 0:02:50]} 14. Ne3 {[%emt 0:01:49]} Rfd8 {[%emt 0:05:25]} 15. g4 {[%emt 0:03:12]} Ne5 {[%emt 0:08:29]} 16. Qd2 {[%emt 0:01:10]} d5 {[%emt 0:17:29]} 17. exd5 {[%emt 0:03:19]} exd5 {[%emt 0:04:38]} 18. Ncxd5 {[%emt 0:07:04]} Nxd5 {[%emt 0:02:13]} 19. cxd5 {[%emt 0:02:20]} Bxd5 {[%emt 0:03:55]} 20. Nxd5 {[%emt 0:01:15]} Qc5+ {[%emt 0:01:00]} 21. Kh1 {[%emt 0:05:36]} Rxd5 {[%emt 0:01:34]} 22. Qc1 {[%emt 0:00:31]} Nd3 {[%emt 0:10:20]} 23. Qxc5 {[%emt 0:02:14]} Bxc5 {[%emt 0:01:23]} 24. Bxd3 {[%emt 0:02:36]} Rxd3 {[%emt 0:00:35]} 25. Rac1 {[%emt 0:07:15]} Re8 {[%emt 0:02:18]} 26. Rc2 {[%emt 0:01:31]} f6 {[%emt 0:02:06]} 27. Bc1 {[%emt 0:00:58]} Kf7 {[%emt 0:02:04]} 28. Kg2 {[%emt 0:01:16]} a5 {[%emt 0:01:50]} 29. f4 {[%emt 0:02:21]} Re4 {[%emt 0:03:43]} 30. Rf3 {[%emt 0:03:21]} Rd1 {[%emt 0:02:06]} 31. Rf1 {[%emt 0:00:09]} Ree1 {[%emt 0:03:12]} 32. Rxe1 {[%emt 0:00:11]} Rxe1 {[%emt 0:00:02]} 33. h3 {[%emt 0:04:20]} f5 {[%emt 0:01:38]} 34. g5 {[%emt 0:03:21]} Re4 {[%emt 0:00:54]} 35. Kf3 {[%emt 0:00:20]} Ke6 {[%emt 0:00:27]} 36. Re2 {[%emt 0:01:24]} Rxe2 {[%emt 0:00:25]} 37. Kxe2 {[%emt 0:00:02]} Kd5 {[%emt 0:00:20]} 38. Kd3 {[%emt 0:00:11]} Bf2 {[%emt 0:01:08]} 39. Bb2 {[%emt 0:01:14]} g6 {[%emt 0:00:14]} 40. Bc3 {[%emt 0:01:06]} Bg3 {[%emt 0:01:03]} 41. Ke3 {[%emt 0:00:40]} Bh2 {[%emt 0:00:40]} 42. Bd2 {[%emt 0:00:50]} Bg1+ {[%emt 0:00:19]} 43. Kd3 {[%emt 0:00:34]} Bc5 {[%emt 0:00:31]} 44. Bc3 {[%emt 0:00:00]} Ba3 {[%emt 0:00:39]} 45. Bd2 {[%emt 0:01:04]} Bb2 {[%emt 0:00:57]} 46. a4 {[%emt 0:00:44]} Bd4 {[%emt 0:00:33]} 47. Bc1 {[%emt 0:00:34]} Bc5 {[%emt 0:00:16]} 48. Bd2 {[%emt 0:00:22]} Bd6 {[%emt 0:00:33]} 49. Be3 {[%emt 0:00:09]} Bc5 {[%emt 0:00:25]} 50. Bd2 {[%emt 0:00:10]} Bd6 {[%emt 0:00:36]} 1/2-1/2

[Event "CZE-ch Amateurs 2022"]
[Site "Luhacovice"]
[Date "2022.03.15"]
[Round "5.17"]
[White "Vrzal, Filip"]
[Black "Mach, Petr"]
[Result "1/2-1/2"]
[ECO "B01"]
[WhiteElo "1877"]
[BlackElo "2023"]
[Annotator "ChessBase"]
[PlyCount "29"]
[EventDate "2022.03.12"]
[EventType "swiss"]
[EventCountry "CZE"]
[SourceTitle "playchess.com"]
[Source "ChessBase"]
[SourceQuality "1"]
[TimeControl "5400+30"]

1. e4 {[%emt 0:00:04]} d5 {[%emt 0:00:04]} 2. exd5 {[%emt 0:00:04]} Nf6 {[%emt 0:00:13]} 3. d4 {[%emt 0:00:07]} Nxd5 {[%emt 0:00:03]} 4. c4 {[%emt 0:00:10]} Nb6 {[%emt 0:00:02]} 5. Nf3 {[%emt 0:00:06]} g6 {[%emt 0:00:03]} 6. Nc3 {[%emt 0:00:06]} Bg7 {[%emt 0:00:04]} 7. c5 {[%emt 0:00:08]} Nd5 {[%emt 0:00:03]} 8. Bc4 {[%emt 0:00:57]} c6 {[%emt 0:00:28]} 9. O-O {[%emt 0:00:34]} O-O {[%emt 0:00:31]} 10. Re1 {[%emt 0:01:51]} Bg4 {[%emt 0:02:33]} 11. Bg5 {[%emt 0:01:57]} Bf6 {[%emt 0:15:48]} 12. Bh6 {[%emt 0:11:38]} Bg7 {[%emt 0:11:13]} 13. Bg5 {[%emt 0:00:16]} Bf6 {[%emt 0:00:39]} 14. Bh6 {[%emt 0:00:17]} Bg7 {[%emt 0:00:03]} 15. Bg5 {[%emt 0:00:12]} 1/2-1/2

[Event "CZE-ch Amateurs 2022"]
[Site "Luhacovice"]
[Date "2022.03.15"]
[Round "5.18"]
[White "Taus, Martin"]
[Black "Svacina, Tobias"]
[Result "1-0"]
[ECO "C56"]
[WhiteElo "2017"]
[BlackElo "1749"]
[Annotator "ChessBase"]
[PlyCount "47"]
[EventDate "2022.03.12"]
[EventType "swiss"]
[EventCountry "CZE"]
[SourceTitle "playchess.com"]
[Source "ChessBase"]
[SourceQuality "1"]
[TimeControl "5400+30"]

1. e4 {[%emt 0:00:35]} e5 {[%emt 0:01:22]} 2. Nf3 {[%emt 0:00:07]} Nc6 {[%emt 0:00:38]} 3. d4 {[%emt 0:00:05]} exd4 {[%emt 0:00:42]} 4. Bc4 {[%emt 0:00:07]} Nf6 {[%emt 0:01:03]} 5. e5 {[%emt 0:00:05]} d5 {[%emt 0:00:30]} 6. Bb5 {[%emt 0:00:41]} Ne4 {[%emt 0:00:52]} 7. Nxd4 {[%emt 0:00:27]} Bd7 {[%emt 0:00:40]} 8. Bxc6 {[%emt 0:00:17]} bxc6 {[%emt 0:00:37]} 9. O-O {[%emt 0:03:37]} Bc5 {[%emt 0:02:44]} 10. f3 {[%emt 0:00:17]} Ng5 {[%emt 0:00:05]} 11. Be3 {[%emt 0:00:17]} Bb6 {[%emt 0:00:33]} 12. f4 {[%emt 0:05:59]} Ne4 {[%emt 0:00:09]} 13. c3 {[%emt 0:05:44]} c5 {[%emt 0:07:16]} 14. Nf3 {[%emt 0:12:52]} Bc6 {[%emt 0:00:36]} 15. a4 {[%emt 0:05:40]} a5 {[%emt 0:00:40]} 16. Kh1 {[%emt 0:01:48]} Qd7 {[%emt 0:04:16]} 17. Nbd2 {[%emt 0:08:27]} Nxd2 {[%emt 0:00:59]} 18. Qxd2 {[%emt 0:00:13]} Bxa4 {[%emt 0:00:46]} 19. e6 {[%emt 0:07:18]} fxe6 {[%emt 0:04:04]} 20. Ne5 {[%emt 0:00:06]} Qb5 {[%emt 0:01:24]} 21. c4 {[%emt 0:00:19]} Qb4 {[%emt 0:00:46]} 22. Qxb4 {[%emt 0:03:47]} axb4 {[%emt 0:02:36]} 23. b3 {[%emt 0:02:31]} d4 {[%emt 0:01:09]} 24. Bd2 {[%emt 0:04:12]} 1-0

[Event "CZE-ch Amateurs 2022"]
[Site "Luhacovice"]
[Date "2022.03.15"]
[Round "5.19"]
[White "Romanek, Zdenek"]
[Black "Bokhnak, Timofey"]
[Result "0-1"]
[ECO "D35"]
[WhiteElo "1624"]
[BlackElo "1978"]
[Annotator "ChessBase"]
[PlyCount "82"]
[EventDate "2022.03.12"]
[EventType "swiss"]
[EventCountry "CZE"]
[SourceTitle "playchess.com"]
[Source "ChessBase"]
[SourceQuality "1"]
[TimeControl "5400+30"]

1. d4 {[%emt 0:00:06]} d5 {[%emt 0:00:18]} 2. c4 {[%emt 0:00:07]} e6 {[%emt 0:00:03]} 3. Bf4 {[%emt 0:00:45]} Nf6 {[%emt 0:00:28]} 4. e3 {[%emt 0:00:35]} c6 {[%emt 0:01:00]} 5. Nc3 {[%emt 0:02:34]} Bd6 {[%emt 0:00:20]} 6. Bxd6 {[%emt 0:02:49]} Qxd6 {[%emt 0:00:06]} 7. Bd3 {[%emt 0:00:08]} Nbd7 {[%emt 0:00:38]} 8. Nge2 {[%emt 0:00:24]} dxc4 {[%emt 0:03:47]} 9. Bxc4 {[%emt 0:00:22]} e5 {[%emt 0:00:03]} 10. Qc2 {[%emt 0:03:34]} O-O {[%emt 0:00:57]} 11. O-O {[%emt 0:00:46]} exd4 {[%emt 0:01:25]} 12. exd4 {[%emt 0:01:54]} Nb6 {[%emt 0:01:40]} 13. Bb3 {[%emt 0:05:30]} Re8 {[%emt 0:05:10]} 14. Rad1 {[%emt 0:02:36]} Bg4 {[%emt 0:03:19]} 15. Rd2 {[%emt 0:04:25]} Re7 {[%emt 0:02:08]} 16. Rfd1 {[%emt 0:05:13]} Rae8 {[%emt 0:00:11]} 17. f3 {[%emt 0:11:10]} Bh5 {[%emt 0:01:20]} 18. d5 {[%emt 0:01:12]} Bg6 {[%emt 0:03:35]} 19. Qc1 {[%emt 0:00:33]} cxd5 {[%emt 0:03:09]} 20. Nb5 {[%emt 0:05:41]} Qe5 {[%emt 0:04:06]} 21. Qc3 {[%emt 0:13:12]} Qg5 {[%emt 0:01:37]} 22. Ng3 {[%emt 0:05:18]} h5 {[%emt 0:01:59]} 23. Nd6 {[%emt 0:03:48]} Rd8 {[%emt 0:02:04]} 24. Qc5 {[%emt 0:00:26]} h4 {[%emt 0:09:21]} 25. Nge4 {[%emt 0:04:57]} Nxe4 {[%emt 0:01:29]} 26. Nxe4 {[%emt 0:00:13]} Bxe4 {[%emt 0:00:23]} 27. fxe4 {[%emt 0:00:35]} Rxe4 {[%emt 0:00:06]} 28. h3 {[%emt 0:06:44]} Rde8 {[%emt 0:01:49]} 29. Rf2 {[%emt 0:03:10]} Re1+ {[%emt 0:04:37]} 30. Rf1 {[%emt 0:01:13]} Rxf1+ {[%emt 0:00:49]} 31. Rxf1 {[%emt 0:00:10]} Qe3+ {[%emt 0:00:06]} 32. Qxe3 {[%emt 0:01:00]} Rxe3 {[%emt 0:00:04]} 33. Rf4 {[%emt 0:00:15]} Re4 {[%emt 0:01:02]} 34. Rf5 {[%emt 0:01:29]} g6 {[%emt 0:00:23]} 35. Rf6 {[%emt 0:00:19]} Re6 {[%emt 0:00:15]} 36. Rf4 {[%emt 0:00:29]} g5 {[%emt 0:00:04]} 37. Rf5 {[%emt 0:00:38]} f6 {[%emt 0:01:38]} 38. Kf2 {[%emt 0:00:46]} Rd6 {[%emt 0:02:40]} 39. Ke2 {[%emt 0:01:07]} Kf7 {[%emt 0:00:18]} 40. Kd3 {[%emt 0:00:18]} Ke6 {[%emt 0:00:07]} 41. Rf2 {[%emt 0:01:01]} Nd7 {[%emt 0:02:12]} 0-1

[Event "CZE-ch Amateurs 2022"]
[Site "Luhacovice"]
[Date "2022.03.15"]
[Round "5.20"]
[White "Zednicek, Filip"]
[Black "Matejovsky, Ondrej"]
[Result "1/2-1/2"]
[ECO "C41"]
[WhiteElo "1570"]
[BlackElo "1939"]
[Annotator "ChessBase"]
[PlyCount "21"]
[EventDate "2022.03.12"]
[EventType "swiss"]
[EventCountry "CZE"]
[SourceTitle "playchess.com"]
[Source "ChessBase"]
[SourceQuality "1"]
[TimeControl "5400+30"]

1. e4 {[%emt 0:00:26]} e5 {[%emt 0:00:06]} 2. d4 {[%emt 0:01:41]} exd4 {[%emt 0:00:13]} 3. Nf3 {[%emt 0:00:06]} d6 {[%emt 0:02:27]} 4. Nxd4 {[%emt 0:04:35]} Nf6 {[%emt 0:01:19]} 5. Nc3 {[%emt 0:03:24]} Be7 {[%emt 0:01:07]} 6. Bc4 {[%emt 0:02:21]} O-O {[%emt 0:01:23]} 7. O-O {[%emt 0:04:46]} b6 {[%emt 0:11:56]} 8. Nd5 {[%emt 0:10:50]} Bb7 {[%emt 0:09:29]} 9. Nf5 {[%emt 0:02:41]} Nxd5 {[%emt 0:05:30]} 10. Bxd5 {[%emt 0:01:28]} Bxd5 {[%emt 0:01:34]} 11. Qxd5 {[%emt 0:03:36]} 1/2-1/2

[Event "CZE-ch Amateurs 2022"]
[Site "Luhacovice"]
[Date "2022.03.16"]
[Round "6.1"]
[White "Buchcar, Tomas"]
[Black "Zvolensky, David"]
[Result "1-0"]
[ECO "D00"]
[WhiteElo "2121"]
[BlackElo "2159"]
[Annotator "ChessBase"]
[PlyCount "31"]
[EventDate "2022.03.12"]
[EventType "swiss"]
[EventCountry "CZE"]
[SourceTitle "playchess.com"]
[Source "ChessBase"]
[SourceQuality "1"]
[TimeControl "5400+30"]

1. d4 {[%emt 0:00:10]} Nf6 {[%emt 0:00:08]} 2. Bf4 {[%emt 0:00:17]} d5 {[%emt 0:01:09]} 3. e3 {[%emt 0:00:10]} c5 {[%emt 0:00:29]} 4. c3 {[%emt 0:00:08]} Nc6 {[%emt 0:00:20]} 5. Nd2 {[%emt 0:00:11]} Bf5 {[%emt 0:03:42]} 6. Ngf3 {[%emt 0:10:11]} Qb6 {[%emt 0:07:07]} 7. Qb3 {[%emt 0:02:05]} c4 {[%emt 0:00:22]} 8. Qxb6 {[%emt 0:02:35]} axb6 {[%emt 0:00:14]} 9. a3 {[%emt 0:04:02]} h6 {[%emt 0:01:17]} 10. Be2 {[%emt 0:05:58]} e6 {[%emt 0:02:07]} 11. h3 {[%emt 0:04:26]} Be7 {[%emt 0:05:37]} 12. O-O {[%emt 0:00:27]} g5 {[%emt 0:00:28]} 13. Bg3 {[%emt 0:07:01]} Nd7 {[%emt 0:02:15]} 14. Rac1 {[%emt 0:08:15]} Ra5 {[%emt 0:08:01]} 15. Ne1 {[%emt 0:01:00]} Rb5 {[%emt 0:10:52]} 16. b4 {[%emt 0:02:27]} 1-0

[Event "CZE-ch Amateurs 2022"]
[Site "Luhacovice"]
[Date "2022.03.16"]
[Round "6.2"]
[White "Jedlicka, Ales"]
[Black "Kupsa, Matej"]
[Result "1/2-1/2"]
[ECO "E08"]
[WhiteElo "2223"]
[BlackElo "2097"]
[Annotator "RC"]
[PlyCount "153"]
[EventDate "2022.03.12"]
[EventType "swiss"]
[EventCountry "CZE"]
[SourceTitle "playchess.com"]
[Source "ChessBase"]
[SourceQuality "1"]
[TimeControl "5400+30"]

1. d4 {[%emt 0:00:14]} Nf6 {[%emt 0:01:15]} 2. c4 {[%emt 0:00:17]} e6 {[%emt 0:00:05]} 3. Nf3 {[%emt 0:01:04]} d5 {[%emt 0:01:38]} 4. g3 {[%emt 0:01:47]} Bb4+ {[%emt 0:03:40]} 5. Bd2 {[%emt 0:00:23]} Be7 {[%emt 0:00:05]} 6. Bg2 {[%emt 0:00:15]} O-O {[%emt 0:00:07]} 7. O-O {[%emt 0:00:15]} Nbd7 {[%emt 0:08:32]} 8. Qc2 {[%emt 0:00:47]} Ne4 {[%emt 0:02:35]} 9. Bf4 {[%emt 0:00:49]} c6 {[%emt 0:00:11]} 10. Nc3 {[%emt 0:00:16]} g5 {[%emt 0:00:29]} 11. Bc1 {[%emt 0:01:28]} f5 {[%emt 0:05:00]} 12. Nxe4 {[%emt 0:00:37]} dxe4 {[%emt 0:03:49]} 13. Nd2 {[%emt 0:03:12]} e5 {[%emt 0:05:16]} 14. e3 {[%emt 0:05:51]} Bf6 {[%emt 0:01:48]} 15. Nb3 {[%emt 0:01:48]} Nb6 {[%emt 0:06:06]} 16. Bd2 {[%emt 0:13:23]} Be6 {[%emt 0:04:04]} 17. Na5 {[%emt 0:08:55]} exd4 {[%emt 0:05:37]} 18. exd4 {[%emt 0:00:14]} Bxd4 {[%emt 0:06:43]} 19. Rad1 {[%emt 0:03:29]} c5 {[%emt 0:03:18]} 20. b4 {[%emt 0:01:05]} Qe7 {[%emt 0:06:37]} 21. bxc5 {[%emt 0:09:38]} Bxc5 {[%emt 0:00:27]} 22. g4 {[%emt 0:01:08]} e3 {[%emt 0:04:12]} 23. Bxe3 {[%emt 0:04:05]} f4 {[%emt 0:00:23]} 24. Bxc5 {[%emt 0:02:17]} Qxc5 {[%emt 0:01:01]} 25. Nxb7 {[%emt 0:00:25]} Qxc4 {[%emt 0:00:21]} 26. Qxc4 {[%emt 0:00:57]} Bxc4 {[%emt 0:00:57]} 27. Rfe1 {[%emt 0:02:09]} f3 {[%emt 0:07:48]} 28. Bf1 {[%emt 0:02:35]} Bxa2 {[%emt 0:00:05]} 29. Re5 {[%emt 0:00:32]} h6 {[%emt 0:00:10]} 30. Ra1 {[%emt 0:02:42]} Bd5 {[%emt 0:06:00]} 31. Rxd5 {[%emt 0:01:16]} Nxd5 {[%emt 0:00:43]} 32. Bc4 {[%emt 0:00:09]} Kg7 {[%emt 0:01:30]} 33. Bxd5 {[%emt 0:00:20]} Rae8 {[%emt 0:02:54]} 34. Nc5 {[%emt 0:04:36]} Rf6 {[%emt 0:02:37]} 35. Rxa7+ {[%emt 0:05:55]} Kh8 {[%emt 0:00:03]} 36. h3 {[%emt 0:06:22]} Rd8 {[%emt 0:08:00]} 37. Ra8 {[%emt 0:00:56]} Rxa8 {[%emt 0:00:02]} 38. Bxa8 {[%emt 0:00:10]} Kg7 {[%emt 0:00:45]} 39. Kh2 {[%emt 0:00:33]} h5 {[%emt 0:00:57]} 40. Nd7 {[%emt 0:03:55]} Rf4 {[%emt 0:01:32]} 41. gxh5 {[%emt 0:01:07]} Kh6 {[%emt 0:01:56]} 42. Ne5 {[%emt 0:01:00]} Kxh5 {[%emt 0:00:24]} 43. Bxf3+ {[%emt 0:00:19]} Kh6 {[%emt 0:00:08]} 44. Kg3 {[%emt 0:00:20]} Rb4 {[%emt 0:00:32]} 45. Ng4+ {[%emt 0:01:07]} Kg6 {[%emt 0:00:07]} 46. Ne3 {[%emt 0:00:17]} Kh6 {[%emt 0:00:18]} 47. Bd5 {[%emt 0:00:28]} Kg6 {[%emt 0:01:12]} 48. f3 {[%emt 0:00:20]} Ra4 {[%emt 0:00:18]} 49. Be4+ {[%emt 0:07:03]} Kh5 {[%emt 0:01:23]} 50. Nd5 {[%emt 0:00:30]} Ra6 {[%emt 0:00:30]} 51. Bf5 {[%emt 0:00:30]} Rd6 {[%emt 0:00:30]} 52. Bg4+ {[%emt 0:00:30]} Kh6 {[%emt 0:00:30]} 53. Ne7 {[%emt 0:00:30]} Rb6 {[%emt 0:00:30]} 54. Nd5 {[%emt 0:00:30]} Rd6 {[%emt 0:00:30]} 55. Nc3 {[%emt 0:00:30]} Rf6 {[%emt 0:00:30]} 56. Kf2 {[%emt 0:00:30]} Rf8 {[%emt 0:00:30]} 57. Ke3 {[%emt 0:00:30]} Kg6 {[%emt 0:00:30]} 58. Ne4 {[%emt 0:00:30]} Rd8 {[%emt 0:00:30]} 59. Nc5 {[%emt 0:00:30]} Kf6 {[%emt 0:00:30]} 60. Nd7+ {[%emt 0:00:30]} Kg6 {[%emt 0:00:30]} 61. Ke4 {[%emt 0:06:40]} Re8+ {[%emt 0:01:50]} 62. Kd5 {[%emt 0:00:30]} Re1 {[%emt 0:00:30]} 63. Be6 {[%emt 0:00:30]} Ra1 {[%emt 0:00:30]} 64. Ne5+ {[%emt 0:00:30]} Kf6 {[%emt 0:00:30]} 65. Ng4+ {[%emt 0:00:30]} Kg6 {[%emt 0:00:30]} 66. Bd7 {[%emt 0:00:30]} Re1 {[%emt 0:00:30]} 67. Kd4 {[%emt 0:00:30]} Re2 {[%emt 0:00:30]} 68. Bc6 {[%emt 0:00:30]} Kf5 {[%emt 0:00:30]} 69. Be4+ {[%emt 0:00:30]} Kf4 {[%emt 0:00:30]} 70. Nf6 {[%emt 0:00:30]} Rd2+ {[%emt 0:00:30]} 71. Kc3 {[%emt 0:00:30]} Rd8 {[%emt 0:00:30]} 72. Nh5+ {[%emt 0:00:30]} Ke3 {[%emt 0:00:30]} 73. Kc4 {[%emt 0:00:30]} Rh8 {[%emt 0:00:30]} 74. Ng7 {[%emt 0:00:30]} Rxh3 {[%emt 0:00:30]} 75. Nf5+ {[%emt 0:00:30]} Kf4 {[%emt 0:00:30]} 76. Kd4 {[%emt 0:00:30]} Rxf3 {[%emt 0:00:30]} 77. Bxf3 {[%emt 0:00:30]} 1/2-1/2

[Event "CZE-ch Amateurs 2022"]
[Site "Luhacovice"]
[Date "2022.03.16"]
[Round "6.3"]
[White "Gabriel, Adam"]
[Black "Jun, Rudolf"]
[Result "1-0"]
[ECO "B33"]
[WhiteElo "2097"]
[BlackElo "2215"]
[Annotator "ChessBase"]
[PlyCount "113"]
[EventDate "2022.03.12"]
[EventType "swiss"]
[EventCountry "CZE"]
[SourceTitle "playchess.com"]
[Source "ChessBase"]
[SourceQuality "1"]
[TimeControl "5400+30"]

1. e4 {[%emt 0:00:15]} c5 {[%emt 0:00:08]} 2. Nf3 {[%emt 0:00:09]} Nc6 {[%emt 0:00:10]} 3. d4 {[%emt 0:00:09]} cxd4 {[%emt 0:00:04]} 4. Nxd4 {[%emt 0:00:05]} Nf6 {[%emt 0:00:06]} 5. Nc3 {[%emt 0:00:29]} e5 {[%emt 0:00:09]} 6. Nf5 {[%emt 0:00:52]} d5 {[%emt 0:00:53]} 7. exd5 {[%emt 0:00:21]} Bxf5 {[%emt 0:01:27]} 8. dxc6 {[%emt 0:00:13]} bxc6 {[%emt 0:08:20]} 9. Qf3 {[%emt 0:00:10]} Qd7 {[%emt 0:03:09]} 10. Bc4 {[%emt 0:00:57]} Bb4 {[%emt 0:05:17]} 11. Bg5 {[%emt 0:02:20]} Ne4 {[%emt 0:20:05]} 12. Bd3 {[%emt 0:01:23]} Nxg5 {[%emt 0:08:27]} 13. Qxf5 {[%emt 0:00:07]} Qxf5 {[%emt 0:00:57]} 14. Bxf5 {[%emt 0:00:06]} Ke7 {[%emt 0:02:07]} 15. h4 {[%emt 0:00:41]} Ne6 {[%emt 0:00:15]} 16. Bxe6 {[%emt 0:00:21]} Kxe6 {[%emt 0:00:39]} 17. Rh3 {[%emt 0:00:07]} Rhd8 {[%emt 0:01:11]} 18. a3 {[%emt 0:08:21]} Be7 {[%emt 0:01:49]} 19. Rd1 {[%emt 0:07:35]} Rd4 {[%emt 0:07:46]} 20. Rxd4 {[%emt 0:22:09]} exd4 {[%emt 0:00:11]} 21. Ne2 {[%emt 0:00:57]} c5 {[%emt 0:02:00]} 22. Kd2 {[%emt 0:05:27]} Rb8 {[%emt 0:05:06]} 23. b3 {[%emt 0:00:20]} Bd6 {[%emt 0:00:46]} 24. Kd3 {[%emt 0:00:47]} Kd5 {[%emt 0:01:26]} 25. Rf3 {[%emt 0:00:58]} f6 {[%emt 0:00:36]} 26. h5 {[%emt 0:01:17]} Be5 {[%emt 0:03:52]} 27. Nf4+ {[%emt 0:12:39]} Bxf4 {[%emt 0:17:27]} 28. Rxf4 {[%emt 0:00:06]} Re8 {[%emt 0:00:46]} 29. h6 {[%emt 0:01:26]} gxh6 {[%emt 0:04:57]} 30. Rxf6 {[%emt 0:00:09]} Rg8 {[%emt 0:00:25]} 31. g3 {[%emt 0:01:25]} Rg6 {[%emt 0:04:10]} 32. Rf5+ {[%emt 0:01:30]} Kc6 {[%emt 0:01:17]} 33. Kc4 {[%emt 0:00:34]} Kb6 {[%emt 0:00:30]} 34. Rxc5 {[%emt 0:03:02]} Rf6 {[%emt 0:00:30]} 35. f4 {[%emt 0:04:30]} Rg6 {[%emt 0:00:29]} 36. Rh5 {[%emt 0:01:08]} Kb7 {[%emt 0:00:31]} 37. Kxd4 {[%emt 0:00:21]} Rc6 {[%emt 0:00:30]} 38. c3 {[%emt 0:01:48]} Rg6 {[%emt 0:00:30]} 39. f5 {[%emt 0:04:14]} Rg4+ {[%emt 0:00:30]} 40. Ke5 {[%emt 0:00:33]} Rxg3 {[%emt 0:00:11]} 41. f6 {[%emt 0:00:05]} Re3+ {[%emt 0:00:27]} 42. Kd4 {[%emt 0:00:49]} Rf3 {[%emt 0:00:26]} 43. Rxh6 {[%emt 0:00:08]} Kb8 {[%emt 0:00:13]} 44. b4 {[%emt 0:01:00]} a6 {[%emt 0:00:26]} 45. a4 {[%emt 0:01:06]} Ka8 {[%emt 0:00:12]} 46. a5 {[%emt 0:01:07]} Rf1 {[%emt 0:00:25]} 47. Kc5 {[%emt 0:01:17]} Rf3 {[%emt 0:00:26]} 48. c4 {[%emt 0:00:39]} Rf4 {[%emt 0:00:40]} 49. Kd5 {[%emt 0:00:27]} Rf1 {[%emt 0:00:48]} 50. Ke6 {[%emt 0:02:56]} Re1+ {[%emt 0:00:11]} 51. Kd7 {[%emt 0:00:07]} Rd1+ {[%emt 0:00:14]} 52. Ke7 {[%emt 0:00:09]} Re1+ {[%emt 0:00:15]} 53. Kf8 {[%emt 0:00:10]} Re6 {[%emt 0:00:27]} 54. Kg7 {[%emt 0:00:10]} Ka7 {[%emt 0:00:21]} 55. f7 {[%emt 0:00:13]} Rxh6 {[%emt 0:00:22]} 56. Kxh6 {[%emt 0:00:14]} Kb7 {[%emt 0:00:05]} 57. f8=Q {[%emt 0:00:12]} 1-0